Cogmind - Beta 15 @@@ ROGUE MODE // 2025.08.08 @ 20:17:48 Player: shapeshifter Result: Destroyed by H-77 Assassin with High-powered Shotgun Performance ------------- Evolutions (6) 3000 Regions Visited (6) 1200 Robots Destroyed (0) 0 Value Destroyed (0) 0 Prototype IDs (6) 120 Alien Tech Used (0) 0 Bonus (2125) 2125 TOTAL SCORE: 6445 Bonus ------- Pacifist 1825 Registered with UFD 300 Cogmind --------- Core Integrity 0/1150 Matter 275/300 Energy 98/100 System Corruption 1% Temperature Cool (0) Movement Core (50) Location -4/Factory Parts ------- > --- POWER (2) -------- (None) > --- PROPULSION (8) --- (None) > --- UTILITY (7) ------ Signal Interpreter Graphene Brace > --- WEAPON (2) ------- (None) > --- INVENTORY (5) ---- Small Storage Unit Advanced Focal Shield Improved Force Field Improved Plasma Cutter Improved Plasma Cutter Peak State ------------ > --- POWER ------------ Light Ion Engine > --- PROPULSION ------- Flight Unit VTOL Module > --- UTILITY ---------- Power Amplifier Signal Interpreter IFF Parser 0b10 Decoder Chip [Looter] Graphene Brace > --- WEAPON ----------- Flail > --- INVENTORY -------- Small Storage Unit Improved Force Field Improved Plasma Cutter Improved Plasma Cutter [Rating: 31] Favorites ----------- Power Light Ion Engine Engine Light Ion Engine Propulsion Flight Unit Flight Unit Flight Unit Utility Signal Interpreter Device IFF Parser Processor Signal Interpreter Weapon Flail Impact Weapon Flail Build | -11 -10 -10 -9 -6 -5 -4 ------- Run | Yrd Mat Sub Scr Fac Fac Fac Slots Evolved 12 | . . . . 8 2 2 Power 1 | . . . . 1 . . Propulsion 6 | . . . . 4 1 1 Utility 5 | . . . . 3 1 1 Weapon . | . . . . . . . Parts Attached 14 | . 4 . 4 4 . 2 Power 3 | . 2 . . 1 . . Engine 3 | . 2 . . 1 . . Core . | . . . . . . . Reactor . | . . . . . . . Propulsion 4 | . 2 . 2 . . . Treads . | . . . . . . . Leg . | . . . . . . . Wheel . | . . . . . . . Hover . | . . . . . . . Flight 4 | . 2 . 2 . . . Utility 6 | . . . 2 2 . 2 Device 4 | . . . . 2 . 2 Storage . | . . . . . . . Processor 2 | . . . 2 . . . Hackware . | . . . . . . . Protection . | . . . . . . . Artifact . | . . . . . . . Weapon 1 | . . . . 1 . . Energy Gun . | . . . . . . . Energy Cannon . | . . . . . . . Ballistic Gun . | . . . . . . . Ballistic Cannon . | . . . . . . . Launcher . | . . . . . . . Special Weapon . | . . . . . . . Impact Weapon 1 | . . . . 1 . . Slashing Weapon . | . . . . . . . Piercing Weapon . | . . . . . . . Special Melee Weapon . | . . . . . . . Unidentified Prototypes . | . . . . . . . Parts Lost 11 | . 2 . . . 3 6 Power 3 | . 1 . . . 1 1 Propulsion 4 | . 1 . . . 1 2 Utility 4 | . . . . . 1 3 Weapon . | . . . . . . . Highest Loss Streak 4 | . 2 . . . 3 4 To Critical Strikes . | . . . . . . . Average Backups 3 | 1 2 1 2 1 2 4 Power . | 1 1 . . . . . Propulsion . | . . . . . . . Utility 1 | . 1 1 1 1 2 2 Weapon . | . . . . . . . Tool/Special . | . . . . . . . Unused Backups 6 | . . . . . . 6 Power . | . . . . . . . Propulsion . | . . . . . . . Utility 4 | . . . . . . 4 Weapon . | . . . . . . . Tool/Special 2 | . . . . . . 2 Average Slot Usage (%) 36 | . 7 28 43 61 49 34 Engine 6 | . 4 14 14 11 7 1 Flight 11 | . 2 14 19 20 14 7 Device 6 | . . . . 10 7 11 Processor 7 | . . . 9 13 11 8 Impact Weapon 2 | . . . . 5 5 3 Peak Build Rating 31 | . 2 2 10 20 20 31 Average Rating 14 | . . 2 5 19 18 24 On Entrance 7 | . . 2 2 10 20 18 Naked Turns 54 | . 54 . . . . . Heaviest Build 11 | . 3 3 3 11 11 8 Greatest Support 12 | 3 4 4 8 12 12 8 Greatest Overweight (x) . | . . . . . . . Average Overweight (x) . | . . . . . . . Largest Inventory Capacity 5 | 5 5 5 5 5 5 5 Average Capacity 5 | 5 5 5 5 5 5 5 Most Carried 5 | 3 4 1 5 4 4 5 Average Carried 3 | 2 2 1 2 1 2 4 Final Capacity 5 | 5 5 5 5 5 5 5 Final Carried 5 | 3 1 1 5 2 4 5 Class Distribution -------------------- 41% | Mutant 40% | Derelict-Mutant 17% | Derelict-Sprinter Dominant Class ---------------- Mutant | -10/Materials Mutant | -10/Subcaves Derelict-Mutant | -9/Scraptown Derelict-Sprinter | -6/Factory Derelict-Mutant | -5/Factory Derelict-Mutant | -4/Factory Resources | -11 -10 -10 -9 -6 -5 -4 ----------- Run | Yrd Mat Sub Scr Fac Fac Fac Matter Collected 270 | 200 . . 70 . . . Remotely . | . . . . . . . Salvage Created . | . . . . . . . Parts . | . . . . . . . Haulers Intercepted . | . . . . . . . Recyclers Shooed . | . . . . . . . Parts Field Recycled . | . . . . . . . Retrieved Matter . | . . . . . . . Parts Self-Destructed . | . . . . . . . Prevented . | . . . . . . . Kills | -11 -10 -10 -9 -6 -5 -4 ------- Run | Yrd Mat Sub Scr Fac Fac Fac Combat Hostiles Destroyed . | . . . . . . . Classes Destroyed . | . . . . . . . Best Kill Streak . | . . . . . . . Combat Bots Only . | . . . . . . . Max Kills in Single Turn . | . . . . . . . Gunslinging . | . . . . . . . Exploded . | . . . . . . . Melee . | . . . . . . . Uniques/NPCs Destroyed . | . . . . . . . Combat | -11 -10 -10 -9 -6 -5 -4 -------- Run | Yrd Mat Sub Scr Fac Fac Fac Hostile Shots Fired 179 | . 50 . . . 15 114 Missed 80 | . 21 . . . 6 53 Hits 99 | . 29 . . . 9 61 Projectile 99 | . 29 . . . 9 61 AOE 1 | . . . . . . 1 Critical Strikes 3 | . . . . . 1 2 Actively Blocked 2 | . . . . . . 2 Damage Taken 1884 | . 264 . . . 236 1384 Core 1430 | . 196 . . . 81 1153 Absorbed by Shields . | . . . . . . . Core Remaining (%) 78 | 100 . . 21 100 91 . Volleys Fired . | . . . . . . . Largest . | . . . . . . . Hottest . | . . . . . . . Shots Fired . | . . . . . . . Gun . | . . . . . . . Cannon . | . . . . . . . Launcher . | . . . . . . . Special . | . . . . . . . Kinetic . | . . . . . . . Thermal . | . . . . . . . Explosive . | . . . . . . . Electromagnetic . | . . . . . . . Robot Hit Streak . | . . . . . . . Robot Miss Streak . | . . . . . . . Penetration Max . | . . . . . . . Secondary Targets . | . . . . . . . Shots Hit Robots . | . . . . . . . Core Hits . | . . . . . . . Critical Kills . | . . . . . . . Critical Parts Destroyed . | . . . . . . . Critical Strikes . | . . . . . . . Melee Attacks . | . . . . . . . Impact . | . . . . . . . Slashing . | . . . . . . . Piercing . | . . . . . . . Sneak Attacks . | . . . . . . . Combat Hostiles . | . . . . . . . Follow-up Attacks . | . . . . . . . Damage Inflicted . | . . . . . . . Guns . | . . . . . . . Cannons . | . . . . . . . Explosions . | . . . . . . . Melee . | . . . . . . . Ramming . | . . . . . . . Kinetic . | . . . . . . . Thermal . | . . . . . . . Explosive . | . . . . . . . Electromagnetic . | . . . . . . . Impact . | . . . . . . . Slashing . | . . . . . . . Piercing . | . . . . . . . Highest Corruption 1 | . . . . . . 1 Average Corruption 1 | . . . . . . 1 Corruption Purged . | . . . . . . . Corruption Blocked . | . . . . . . . Overload Shots . | . . . . . . . Overflow Damage . | . . . . . . . Projectiles . | . . . . . . . Explosions . | . . . . . . . Melee . | . . . . . . . Knockbacks . | . . . . . . . Impact . | . . . . . . . Kinetic . | . . . . . . . Secondary . | . . . . . . . Self-Inflicted Damage . | . . . . . . . Shots . | . . . . . . . Rammed . | . . . . . . . Targets Rammed . | . . . . . . . Kicked . | . . . . . . . Crushed . | . . . . . . . Highest Temperature 7 | . . . . . 7 . Average Temperature 7 | . . . . . 7 . Received Heat Transfer 207 | . 36 . . . 72 99 Siege Activations . | . . . . . . . Martial Activations . | . . . . . . . Shielding Activations . | . . . . . . . Robots Disrupted . | . . . . . . . Combat Hostiles . | . . . . . . . Robots Corrupted . | . . . . . . . Combat Hostiles . | . . . . . . . Parts Fried . | . . . . . . . Impact Corruptions . | . . . . . . . Robots Melted . | . . . . . . . Combat Hostiles . | . . . . . . . Parts Melted . | . . . . . . . Heat Transferred . | . . . . . . . Parts Sabotaged . | . . . . . . . Parts Stolen . | . . . . . . . Parts Stripped . | . . . . . . . Power Chain Reactions . | . . . . . . . Alert | -11 -10 -10 -9 -6 -5 -4 ------- Run | Yrd Mat Sub Scr Fac Fac Fac Maximum Alert Level . | . . . . . . . Low Security (%) 100 | 100 100 . . 100 100 100 Level 1 . | . . . . . . . Level 2 . | . . . . . . . Level 3 . | . . . . . . . Level 4 . | . . . . . . . Level 5 . | . . . . . . . High Security . | . . . . . . . Max Security . | . . . . . . . Peak Influence 85 | . 15 . . 31 41 85 Initial 19 | . . . . . 9 19 Average 18 | . 2 . . 16 13 29 Influence Increases 306 | . 15 . . 41 65 185 Successful Hack 36 | . . . . 11 20 5 Partial Spotted 45 | . . . . 30 15 . Lose Combat Pursuer 225 | . 15 . . . 30 180 Influence Decreases 251 | . 10 5 . 20 45 171 Entered New Map 37 | . . 3 . . 12 22 Time Decay 141 | . 10 2 . 20 20 89 Lost Part 73 | . . . . . 13 60 Squads Dispatched 8 | . 1 . . 1 1 5 Investigation 2 | . . . . . 1 1 Extermination 1 | . . . . . . 1 Reinforcement 5 | . 1 . . 1 . 3 Assault . | . . . . . . . Garrison . | . . . . . . . Intercept . | . . . . . . . Searches Triggered . | . . . . . . . Construction Impeded . | . . . . . . . Haulers Reinforced . | . . . . . . . Active Scanning Responses . | . . . . . . . Cargo Convoy Interrupts . | . . . . . . . Stealth | -11 -10 -10 -9 -6 -5 -4 --------- Run | Yrd Mat Sub Scr Fac Fac Fac Distress Signals 1 | . . . . . 1 . Communications Jammed . | . . . . . . . Distress Signals . | . . . . . . . Times Spotted 45 | . 8 . . 1 9 27 Peak Tracking Total 13 | . 5 . . 1 7 13 Tactical Retreats 8 | . 1 . . . 1 6 Traps | -11 -10 -10 -9 -6 -5 -4 ------- Run | Yrd Mat Sub Scr Fac Fac Fac Traps Triggered 1 | . . . . . 1 . Indirectly . | . . . . . . . Trap Hack Attempts . | . . . . . . . Triggered . | . . . . . . . Disarmed . | . . . . . . . Reprogrammed . | . . . . . . . Reused . | . . . . . . . Traps Extracted . | . . . . . . . Installed . | . . . . . . . Triggered . | . . . . . . . Machines | -11 -10 -10 -9 -6 -5 -4 ---------- Run | Yrd Mat Sub Scr Fac Fac Fac Machines Disabled . | . . . . . . . Max in Single Turn . | . . . . . . . Machines Repaired . | . . . . . . . Machines Dismantled . | . . . . . . . Machines Sabotaged . | . . . . . . . Overloaded Fab Kills . | . . . . . . . Hacking | -11 -10 -10 -9 -6 -5 -4 --------- Run | Yrd Mat Sub Scr Fac Fac Fac Machines Accessed 7 | . . . 1 2 3 1 Terminals 6 | . . . . 2 3 1 Fabricators . | . . . . . . . Repair Stations . | . . . . . . . Recycling Units . | . . . . . . . Scanalyzers . | . . . . . . . Garrison Access . | . . . . . . . Total Hacks 32 | . . . 19 5 5 3 Successful 24 | . . . 19 2 2 1 Failed 8 | . . . . 3 3 2 Catastrophic 2 | . . . . . 1 1 Database Lockouts . | . . . . . . . Manual 11 | . . . . 5 3 3 Terminals 13 | . . . . 5 5 3 Fabricators . | . . . . . . . Repair Stations . | . . . . . . . Recycling Units . | . . . . . . . Scanalyzers . | . . . . . . . Garrison Access . | . . . . . . . Terminal Hacks 22 | . . . 19 1 2 . Record 19 | . . . 19 . . . Zone Layout 3 | . . . . 1 2 . Fabricator Hacks . | . . . . . . . Repair Station Hacks . | . . . . . . . Recycling Unit Hacks . | . . . . . . . Scanalyzer . | . . . . . . . Garrison Access Hacks . | . . . . . . . Unauthorized Hacks 2 | . . . . 1 . 1 Terminals 2 | . . . . 1 . 1 Botnet 2 | . . . . 1 . 1 Fabricators . | . . . . . . . Repair Stations . | . . . . . . . Recycling Units . | . . . . . . . Scanalyzers . | . . . . . . . Garrison Access . | . . . . . . . Data Cores Recovered . | . . . . . . . Used . | . . . . . . . Hacking Detections 5 | . . . . 2 2 1 Full Trace Events 2 | . . . . . 1 1 Feedback Events . | . . . . . . . Feedback Blocked . | . . . . . . . Robot Schematics Acquired . | . . . . . . . Robots Built . | . . . . . . . Authchips . | . . . . . . . Time . | . . . . . . . Total Robot Build Rating . | . . . . . . . Part Schematics Acquired . | . . . . . . . Parts Built . | . . . . . . . Authchips . | . . . . . . . Time . | . . . . . . . Total Part Build Rating . | . . . . . . . Parts Repaired . | . . . . . . . Time . | . . . . . . . Parts Recycled . | . . . . . . . Recycled Matter . | . . . . . . . Retrieved Matter . | . . . . . . . Retrieved Components . | . . . . . . . Parts Scanalyzed . | . . . . . . . Part Schematics Acquired . | . . . . . . . Parts Damaged . | . . . . . . . Bothacking | -11 -10 -10 -9 -6 -5 -4 ------------ Run | Yrd Mat Sub Scr Fac Fac Fac Used RIF Installer . | . . . . . . . Robots Hacked . | . . . . . . . Non-combat . | . . . . . . . Combat . | . . . . . . . Robot Hacks Applied . | . . . . . . . Relay Couplers Released . | . . . . . . . Fabnet Peak Effective % . | . . . . . . . Robots Rewired . | . . . . . . . Allies Hacked . | . . . . . . . Hacks Repelled . | . . . . . . . Allies | -11 -10 -10 -9 -6 -5 -4 -------- Run | Yrd Mat Sub Scr Fac Fac Fac Total Allies . | . . . . . . . Largest Group . | . . . . . . . Highest-Rated Group . | . . . . . . . Highest-Rated Ally . | . . . . . . . Total Orders . | . . . . . . . Ally Attacks . | . . . . . . . Total Damage . | . . . . . . . Kills . | . . . . . . . Allies Corrupted . | . . . . . . . Allies Melted . | . . . . . . . Intel | -11 -10 -10 -9 -6 -5 -4 ------- Run | Yrd Mat Sub Scr Fac Fac Fac Active Infowar (turns) 362 | . . . 37 55 77 193 IFF 317 | . . . . 47 77 193 Decoding 319 | . . . 37 55 77 150 ECM 77 | . . . . 53 24 . Robot Analysis Total . | . . . . . . . Derelict Logs Recovered 1 | . . 1 . . . . Drone Launches . | . . . . . . . Drone Recoveries . | . . . . . . . Decoded 0b10 Intel 22 | . . . . 4 6 12 Items 22 | . . . . 4 6 12 Exploration | -11 -10 -10 -9 -6 -5 -4 ------------- Run | Yrd Mat Sub Scr Fac Fac Fac Turns Passed 575 | 15 89 22 104 55 77 213 Spaces Moved 1398 | 24 177 27 248 148 227 547 Core 268 | 24 119 . . . . 125 Treads . | . . . . . . . Legs . | . . . . . . . Wheels . | . . . . . . . Hover . | . . . . . . . Flight 1130 | . 58 27 248 148 227 422 Fastest Speed 32 | 50 40 40 34 32 32 34 Average Speed 37 | 50 46 40 37 32 32 37 Slowest Speed 50 | 50 50 40 40 32 34 50 Overloaded Moves . | . . . . . . . Propulsion Burnouts . | . . . . . . . Robots Hopped 21 | . 4 . . 4 9 4 Potential Cave-ins . | . . . . . . . Cave-ins Triggered . | . . . . . . . Exploration Rate (%) 16 | 4 36 3 29 8 10 22 Regions Visited 6 Branch Regions 2 Pre-discovered Areas 4 | . . . 4 . . . Known Exits Taken 3 | . . . 1 1 1 . Unknown Exits Taken 3 | 1 1 1 . . . . Scrap Searched 1 | . . . 1 . . . Spaces Dug . | . . . . . . . Terrain Destroyed . | . . . . . . . Melee . | . . . . . . . Projectile . | . . . . . . . AOE . | . . . . . . . Terrain Rammed . | . . . . . . . Walls Destroyed . | . . . . . . . Machines Disabled . | . . . . . . . Actions | -11 -10 -10 -9 -6 -5 -4 --------- Run | Yrd Mat Sub Scr Fac Fac Fac Total 1419 | 26 178 37 258 150 219 551 Wait 11 | . . 11 . . . . Move 1352 | 23 168 26 247 140 209 539 Hop 19 | . 4 . . 3 8 4 Pick Up 20 | 3 2 . 7 2 2 4 Fast Attach . | . . . . . . . Attach 14 | . 4 . 3 5 . 2 Detach . | . . . . . . . Swap 1 | . . . 1 . . . Drop 2 | . . . . . . 2 Fire . | . . . . . . . Melee . | . . . . . . . Ram . | . . . . . . . Kick . | . . . . . . . Crush . | . . . . . . . Escape Stasis . | . . . . . . . Rewire . | . . . . . . . Trap . | . . . . . . . Miscellaneous . | . . . . . . . Route ------- -11/Scrapyard -10/Materials -10/Subcaves (discovered 2 exits: Mat / *Scr) -9/Scraptown (discovered 2 exits: *Fac x2) -6/Factory (discovered 3 exits: *Fac x2 / Low) -5/Factory (discovered 3 exits: *Fac / *Upp x2) -4/Factory (discovered 1 exit: *Upp) History --------- Turn | Location | Event 7 | -11/Scrapyard | Discovered new exit (range 15) 16 | -11/Scrapyard | Entered Materials 71 | -10/Materials | Core integrity fell below 50% 104 | -10/Materials | Discovered new exit (range 4) 105 | -10/Materials | Entered Subcaves 106 | -10/Subcaves | Approached by a straggling Scientist 107 | -10/Subcaves | Identified exit to Materials 124 | -10/Subcaves | Scientist uncovered a shortcut to Scraptown 127 | -10/Subcaves | Entered Scraptown 149 | -9/Scraptown | Visited UFD Registry 149 | -9/Scraptown | Registered with UFD as "Armortank" 162 | -9/Scraptown | Visited Infowarlord's Domain 181 | -9/Scraptown | Visited DA-N13 Charitable Foundation 183 | -9/Scraptown | Found DCF Scrap (26 items) 202 | -9/Scraptown | Visited Cartography Club 216 | -9/Scraptown | Learned location of Upper Caves (-4) 216 | -9/Scraptown | Learned location of Warlord (-4) 216 | -9/Scraptown | Learned location of Archives (-5) 216 | -9/Scraptown | Learned 12 Materials zone layouts 216 | -9/Scraptown | Learned 8 Materials zone layouts 216 | -9/Scraptown | Learned 8 Research zone layouts 216 | -9/Scraptown | Learned 12 Research zone layouts 216 | -9/Scraptown | Learned 4 Access zone layouts 216 | -9/Scraptown | Learned 4 Mines zone layouts 216 | -9/Scraptown | Learned 8 Access zone layouts 216 | -9/Scraptown | Learned 8 Upper Caves zone layouts 216 | -9/Scraptown | Learned 24 Proximity Caves zone layouts 216 | -9/Scraptown | Learned 16 Proximity Caves zone layouts 216 | -9/Scraptown | Learned location of 3 exits from Factory 216 | -9/Scraptown | Learned location of 2 exits from Lower Caves 216 | -9/Scraptown | Identified exit to Factory 231 | -9/Scraptown | Entered Factory 231 | -6/Factory | Evolved 8 slots: Power x1, Propulsion x4, Utility x3 232 | -6/Factory | Identified exit to Lower Caves 232 | -6/Factory | Identified exit to Factory 258 | -6/Factory | Spotted B-75 Beast 286 | -6/Factory | Entered another Factory area 286 | -5/Factory | Evolved 2 slots: Propulsion x1, Utility x1 287 | -5/Factory | Identified exit to Upper Caves 358 | -5/Factory | Discovered new exit (range 14) 359 | -5/Factory | Lost 3 parts (1p1n1u) 362 | -5/Factory | Identified exit to Factory 363 | -5/Factory | Entered another Factory area 363 | -4/Factory | Evolved 2 slots: Propulsion x1, Utility x1 364 | -4/Factory | Identified exit to Upper Caves 417 | -4/Factory | Spotted B-86 Titan 547 | -4/Factory | Lost 4 parts (2n2u) 554 | -4/Factory | Core integrity fell below 50% 570 | -4/Factory | Core integrity fell below 20% 576 | -4/Factory | Destroyed by H-77 Assassin with High-powered Shotgun Last Messages --------------- 00517_ Slug penetrates Wall. 00518_ W-44 Eye destroyed. 00520_ Penetrated by Slug. 00525_ Slug penetrates Wall. 00527_ Penetrated by Slug. 00527_ Slug penetrates Wall. 00544_ Nuclear Reactor explodes. 00544_ G-67 Veteran destroyed. 00546_ The unstable cave ceiling collapses. 00554_ Nuclear Reactor explodes. 00555_ The unstable cave ceiling collapses. 00556_ IFF Parser destroyed. 00567_ Penetrated by Slug. 00567_ Slug penetrates Wall. 00567_ Penetrated by Slug. 00567_ Slug penetrates Wall. 00571_ Penetrated by Slug. 00571_ Slug penetrates Wall. 00571_ Penetrated by Slug. 00576_ Slug penetrates Wall. Map ----- +----------------------------------------------------+ | ???# ########### """" # ????????? | | ???# + ## #????????? | | ???# ##### #### ! ## #??####### | | ???# #???# #????? " ## #?? ! # | | ???# #???# #??????? ## #? # | | ???# #???# #????????? ## #? = # | | #??# #???# #???????????## # """# | | ###+##/#####+############## # """# | | !# # # + """# | | # ! # # # ! # | | # ! # ! # # """# | | #! # # #?! ! """? | | # ! # # #? """? | | # # # #?? ? | | # # > # #??####### | | # ]=! # = # #???? !??? | | # ]=! # # #???? ??? | | # = ]=! # # #???""""?? | | # #?? ?# #???"""" ? | | # #???? ???# #?? """" # | | /######+#############+###### ##? """" # | | #! # | | ^ p # """" ? | | ^ h + """" ? | | h # """" ? | | R @ # """" ? | | +#############+#############+##+#? ? | | ????????# ## #? """" # | | ! ??????# "" ## """ #??"""" # | | ?????# !! * """ ## """ #??"""" ? | | ????# !! F" ## """ #???""??? | | ????# !! """ ## !#??? ???? | | ????# "" ## ! ########? | | ????? ! ! ## #?""" ?? | | ?????## ## !#?"Y" !?? | | ???????# """"""""" ## "" #?? ??? | | ?#?????????# ]## "F #?? ??? | | ???????????# """"""""" ## "" = ####+#??? | | ???????????# ## "" + #??? | | ???????????#######???????# #### #??? | | ?????????????????????????##+##+##??# #??? | | ??????????????????????????# #???# #??? | | ??????????????????????????# #???# #??? | | ??????????????????????????# ##### #??? | | ??????????????????????????#! #??? | | ??????????????????????????# ####### | | ??????????????????????????# ]]! # !# | | ??????????????????????????# ]]! +! # | | ??????????????????????????# ]!! # # | | ??????????????????????????# #! =! # | +----------------------------------------------------+ Best States ------------- Heat Dissipation 43 Energy Generation 15 Energy Capacity 150 Matter Stores 300 Matter Capacity 300 Sight Range 16 Terrain Scan Density 10 ECM Strength 1 Power Amplification 20 Evasion (%) 63 Item Schematics ----------------- None Robot Schematics ------------------ None Fabricated ------------ Nothing Repaired ---------- Nothing Alien Tech Used ----------------- None Achievements -------------- None Challenges ------------ None Game ------ Seed TargetingAntigravBallwheel Manual? 1 Play Time 00:17:13 Cumulative 118.4 hours Start 2025.08.08 @ 20:02:40 End 2025.08.08 @ 20:17:48 Sessions 1 Manual Loads 0 Difficulty Rogue Special Mode None Game No. 210 Rogue 210 Adventurer 0 Explorer 0 Win Type - Total 1 Types 1/0/0/0/0/0/0/0/0/0 Lore% 69 Gallery% 64 Achievement% 44 Wizard Run 0 Options --------- Layout 1 ASCII 0 Keyboard 0 Movement Numpad Keybinds 0 Fullscreen 1 Font 24/Smallcaps Map View 50x40 Zoom Use 0% Tactical HUD 1 Map Filters NONE Filters NONE Steam 1 RUN: 41ea8536-e157-4006-a04b-e48fcd37bae8